bitfinex-derivatives/quotes_ETHF0:USTF0_20251107
["timestamp","ask_amount","ask_price","bid_price","bid_amount"]
[1762532646592,0.26269673,3319.9,3319.2,3.2078]
[1762532647098,3.2078,3320.0,3319.2,3.2078]
[1762532647300,3.2078,3320.0,3319.2,3.6953]
[1762532647496,0.00388633,3320.3,3320.1,0.4883]
[1762532647798,0.00388633,3320.3,3319.7,3.69615]
[1762532647997,0.00388633,3320.3,3320.2,3.69609]
[1762532648199,1.06677036,3321.8,3320.2,3.2078]
[1762532648398,3.2078,3322.2,3321.5,3.2078]
[1762532648697,0.48807,3321.7,3321.1,3.69595]
[1762532649003,3.2078,3322.2,3321.4,0.48811]
[1762532649189,3.2078,3321.7,3321.5,0.00451977]
[1762532649393,3.69589,3321.7,3321.5,0.00451977]
[1762532649595,3.2078,3321.7,3321.5,0.00451977]
[1762532650102,3.69588,3321.7,3321.5,0.00451977]
[1762532650299,0.48811,3321.5,3320.0,0.4875]
[1762532650504,3.2078,3321.2,3320.3,3.2078]
[1762532650804,0.48826,3320.5,3320.3,3.2078]
[1762532651398,0.48826,3320.5,3320.3,0.00278314]
[1762532651897,3.2078,3320.6,3320.3,0.00278314]
[1762532652197,3.2078,3321.1,3320.3,0.00278314]
[1762532652402,0.48826,3320.5,3320.3,0.00278314]
[1762532653102,3.2078,3321.1,3320.3,0.00278314]
[1762532653301,0.48827,3320.4,3320.3,0.00278314]
[1762532654293,0.4883,3320.2,3320.1,0.00451977]
[1762532654494,3.6961,3320.2,3320.1,0.00451977]
[1762532654900,8.4883,3320.2,3320.1,0.00451977]
[1762532655094,11.6961,3320.2,3320.1,0.00451977]
[1762532655295,3.2078,3320.7,3320.1,0.007085]
[1762532655496,3.69604,3320.7,3320.2,3.2078]
[1762532655697,3.2078,3321.1,3320.2,3.2078]
[1762532655903,0.48827,3320.4,3320.2,3.2078]
[1762532657013,0.4883,3320.2,3320.1,0.007085]
[1762532657404,0.48843,3319.3,3319.2,3.2078]
[1762532657606,1.55907036,3320.8,3318.9,3.2078]
[1762532657607,0.48847,3319.0,3318.9,3.2078]
[1762532657804,3.2078,3319.7,3318.9,3.2078]
[1762532658107,0.48846,3319.1,3318.9,3.2078]
[1762532658499,0.48847,3319.0,3318.9,0.00357772]
[1762532658708,0.00272954,3319.1,3318.0,3.2078]
[1762532658908,3.2078,3318.6,3318.0,3.2078]
[1762532659110,0.00272954,3319.1,3318.4,4.18385]
[1762532659404,0.00272954,3319.1,3318.9,0.48848]
[1762532659708,0.00272954,3319.1,3318.9,0.49215423]
[1762532660905,3.69604,3320.6,3320.1,0.48831]
[1762532661114,3.2078,3320.6,3320.4,0.48826]
[1762532661303,0.48827,3320.4,3320.0,0.97582]
[1762532661502,3.2078,3320.6,3319.9,3.2078]
[1762532661922,0.48828,3320.3,3319.9,3.69613]
[1762532662410,0.48833,3320.1,3319.9,3.2078]
[1762532662611,0.48834,3319.9,3319.6,0.48838]
[1762532663008,3.21466224,3320.6,3319.9,0.48833]
[1762532663306,3.21466224,3320.6,3320.1,0.48831]
[1762532663711,3.21466224,3320.6,3319.9,3.2078]
[1762532663917,0.48829,3320.3,3320.1,0.48831]
[1762532664219,0.00686224,3320.6,3320.4,0.48826]
[1762532665718,3.2078,3321.4,3321.2,0.48814]
[1762532665916,3.2078,3321.8,3320.9,3.2078]
[1762532666214,3.2078,3322.2,3321.1,0.48816]
[1762532666517,3.2078,3322.2,3321.0,3.2078]
[1762532666716,0.48806,3321.8,3321.5,0.4881]
[1762532666912,0.00451977,3321.9,3321.7,0.48806]
[1762532667216,0.00451977,3321.9,3321.6,0.4556]
[1762532667517,0.00451977,3321.9,3321.7,0.48807]
[1762532668314,0.00451977,3321.9,3321.5,0.00237139]
[1762532668517,0.48808,3321.7,3321.5,0.00237139]
[1762532669223,0.48807,3321.8,3321.5,0.00237139]
[1762532669412,0.48808,3321.7,3321.5,0.00237139]
[1762532671020,0.00451977,3321.9,3321.3,0.00451977]
[1762532671021,0.48812,3321.4,3321.3,0.00451977]
[1762532671324,0.48825,3320.6,3320.5,3.2078]
[1762532671525,3.6815,3321.6,3320.5,3.2078]
[1762532671526,3.2078,3321.6,3320.5,3.2078]
[1762532671726,0.48822,3320.7,3320.5,3.2078]
[1762532672021,0.48822,3320.7,3320.5,3.21156835]
[1762532673022,0.48822,3320.7,3320.5,0.00376835]
[1762532674028,3.2078,3321.3,3320.5,0.00376835]
[1762532674225,3.2078,3321.3,3320.7,0.48821]
[1762532674628,3.2078,3321.3,3320.6,3.2078]
[1762532674830,0.4882,3320.9,3320.6,0.48824]
[1762532675028,0.48819,3320.9,3320.8,0.48821]
[1762532675230,3.2078,3321.3,3320.7,0.48821]
[1762532675535,0.48815,3321.2,3321.1,0.48816]
[1762532675722,6.013,3321.5,3320.6,3.2078]
[1762532675927,6.013,3321.5,3321.4,0.48812]
[1762532676231,6.013,3321.5,3321.1,3.2078]
[1762532676232,0.00451977,3321.9,3321.1,3.2078]
[1762532676432,0.48806,3321.8,3321.1,3.2078]
[1762532676631,0.48808,3321.7,3321.6,0.48809]
[1762532676831,0.48807,3321.8,3321.1,3.2078]
[1762532677032,0.00451977,3321.9,3321.8,0.48806]
[1762532677228,0.00451977,3321.9,3321.3,0.48813]
[1762532677436,0.00451977,3321.9,3321.6,0.4556]
[1762532677632,0.00451977,3321.9,3321.8,0.48806]
[1762532678330,0.48793,3322.7,3321.6,0.4556]
[1762532678526,0.48793,3322.7,3322.0,3.2078]
[1762532678732,0.48792,3322.8,3322.6,0.48794]
[1762532679035,0.48793,3322.7,3322.4,3.6634]
[1762532679230,0.48796,3322.6,3322.4,0.4556]
[1762532679437,0.48797,3322.5,3322.3,0.00451977]
[1762532679729,0.2636,3322.4,3322.3,1.977e-05]
[1762532679932,8.2636,3322.4,3322.3,1.977e-05]
[1762532680737,10.048,3322.4,3322.3,1.977e-05]
[1762532681533,0.48824,3320.6,3320.5,0.00376835]
[1762532681836,0.48842,3319.4,3319.1,3.2078]
[1762532682036,0.48844,3319.2,3319.1,3.2078]
[1762532682436,3.2078,3320.2,3319.2,0.4307]
[1762532682637,3.2078,3320.4,3319.1,3.2078]
[1762532682832,0.266,3319.2,3318.7,3.2078]
[1762532683043,3.2078,3318.8,3317.0,0.79052395]
[1762532683246,3.2078,3317.8,3316.8,0.4307]
[1762532683546,0.48853,3318.6,3317.9,0.48862]
[1762532683736,3.2078,3318.7,3318.4,0.48855]
[1762532683930,0.00361195,3318.7,3318.6,0.48852]
[1762532684336,0.48854,3318.6,3318.4,0.00298389]
[1762532684839,8.48854,3318.6,3318.4,0.00298389]
[1762532685141,0.92418,3318.3,3318.2,0.00451977]
[1762532685339,0.48867,3317.7,3317.1,0.48874]
[1762532685644,3.69647,3317.7,3317.1,0.48874]
[1762532685843,0.4356,3318.3,3315.9,0.79052395]
[1762532685844,3.2078,3317.3,3315.9,0.79052395]
[1762532686042,3.6434,3317.4,3315.6,0.48896]
[1762532686244,3.2078,3317.0,3315.7,0.48895]
[1762532686545,0.48885,3316.5,3316.2,0.00451977]
[1762532687045,0.00451977,3316.8,3316.2,0.49338977]
[1762532687289,0.00451977,3316.8,3316.2,0.00451977]
[1762532687470,3.2078,3316.5,3316.2,0.00451977]
[1762532687939,0.00451977,3316.8,3316.2,0.00451977]
[1762532688534,3.2078,3316.5,3316.3,0.48886]
[1762532688742,0.00451977,3316.8,3316.7,0.48881]
[1762532689245,0.00451977,3316.8,3316.7,3.69661]
[1762532689647,0.4356,3318.3,3317.6,0.48868]
[1762532689648,3.2078,3317.8,3317.6,0.48868]
[1762532690042,9.59839,3318.2,3317.6,0.48868]
[1762532690236,3.2078,3318.2,3317.1,3.2078]
[1762532690438,3.2078,3318.6,3318.2,0.48857]
[1762532690747,3.2078,3318.6,3318.2,0.49139611]
[1762532690947,3.2078,3318.6,3318.2,0.00282611]
[1762532691443,0.92417,3318.3,3318.2,0.00282611]
[1762532692150,0.48856,3318.4,3318.2,0.00282611]
[1762532692646,0.48857,3318.4,3318.2,0.00282611]
[1762532692943,3.2078,3318.6,3318.2,0.00282611]
[1762532693145,3.2078,3318.6,3318.4,0.48855]
[1762532693552,0.00813172,3318.7,3318.4,0.48855]
[1762532693753,0.00813172,3318.7,3318.4,0.48854]
[1762532693946,0.48859,3318.2,3318.1,4.588e-05]
[1762532694548,3.2078,3318.5,3318.1,4.588e-05]
[1762532694753,0.48858,3318.3,3318.1,4.588e-05]
[1762532694950,0.48858,3318.3,3318.1,0.0022522]
[1762532697154,0.3346,3318.4,3316.0,0.4307]
[1762532697155,8.0,3318.2,3316.3,3.2078]
[1762532697352,0.48879,3316.8,3316.3,3.69665]
[1762532697547,3.2078,3317.2,3316.3,3.2078]
[1762532697749,0.48874,3317.1,3316.3,3.2078]
[1762532698050,0.48877,3316.9,3316.6,0.48881]
[1762532698250,0.48877,3316.9,3316.4,0.00451977]
[1762532698452,0.00451977,3317.0,3316.9,0.48877]
[1762532698649,0.00451977,3317.0,3316.8,0.48878]
[1762532698846,3.2078,3318.6,3316.8,0.5152]
[1762532699046,3.2078,3319.0,3318.5,0.48853]
[1762532699446,10.847,3320.9,3318.5,0.48853]
[1762532699447,3.2078,3319.5,3318.5,3.69633]
[1762532699653,3.2078,3319.5,3319.1,0.48843]
[1762532699848,3.2078,3319.5,3318.5,3.2078]
[1762532700156,0.48848,3318.9,3318.7,0.00451977]
[1762532700651,0.48848,3318.9,3318.7,0.00785145]
[1762532700652,0.4908248,3318.9,3318.7,0.00785145]
[1762532701050,0.0023448,3318.9,3318.8,0.48849]
[1762532701454,0.48849,3318.8,3318.7,0.00785145]
[1762532701655,0.5316,3318.3,3316.6,3.2078]
[1762532701956,3.2078,3317.2,3316.6,3.2078]
[1762532702151,3.2078,3317.7,3316.6,3.2078]
[1762532702352,0.48871,3317.4,3317.0,0.48875]
[1762532702555,0.00451977,3317.5,3317.4,0.48869]
[1762532702754,0.00451977,3317.5,3317.3,0.48871]
[1762532702959,0.00451977,3317.5,3317.4,0.5152]
[1762532703262,3.6986248,3318.9,3317.4,8.5152]
[1762532703561,3.2101448,3318.9,3318.2,0.48857]
[1762532703759,0.48854,3318.5,3318.2,0.48857]
[1762532703951,3.6986248,3318.9,3318.6,0.48852]
[1762532704259,0.0023448,3318.9,3318.7,0.4885]
[1762532704454,3.2078,3319.8,3319.7,0.48836]
[1762532704655,3.2078,3319.8,3318.5,3.2078]
[1762532704656,3.2078,3320.4,3320.3,0.48827]
[1762532704856,0.48825,3320.5,3320.2,3.2078]
[1762532705153,0.48825,3320.5,3319.2,0.4307]
[1762532705154,3.69597,3321.0,3320.6,0.48821]
[1762532705354,3.21103118,3321.0,3320.6,0.00222961]
[1762532705659,0.4882,3320.8,3320.6,0.00222961]
[1762532706156,8.0,3320.7,3319.5,0.48838]
[1762532706365,0.48836,3319.8,3319.3,0.48841]
[1762532706558,0.48838,3319.6,3319.1,3.69624]
[1762532706758,3.2078,3320.5,3319.5,3.2078]
[1762532707257,3.2078,3320.5,3317.9,1.60631645]
[1762532707258,3.2078,3319.6,3318.7,3.2078]
[1762532707450,3.2078,3318.8,3318.0,3.2078]
[1762532707953,3.2078,3318.4,3317.6,3.2078]
[1762532708153,3.2078,3318.9,3317.6,3.2078]
[1762532708348,0.00451977,3318.6,3318.0,3.2078]
[1762532708549,0.48856,3318.4,3318.0,3.6964]
[1762532708755,0.00451977,3318.6,3318.0,3.2078]
[1762532708961,0.00451977,3318.6,3318.4,0.48855]
[1762532709164,0.00451977,3318.6,3318.5,3.2078]
[1762532709358,0.00451977,3318.6,3318.4,0.48855]
[1762532709959,0.00451977,3318.6,3318.5,3.2078]
[1762532710558,0.00451977,3318.6,3318.5,11.2078]
[1762532710767,0.00451977,3318.6,3318.5,3.2078]
[1762532711564,0.49303977,3318.6,3318.5,3.2078]
[1762532711762,0.00451977,3318.6,3318.5,3.2078]
[1762532712863,0.00451977,3318.6,3318.5,3.69634]
[1762532713055,0.5316,3320.0,3318.5,11.2078]
[1762532713056,3.2078,3319.8,3318.5,11.2078]
[1762532713271,3.2078,3319.8,3319.3,0.48841]
[1762532713456,3.7394,3321.0,3319.4,3.2078]
[1762532713657,3.2078,3321.0,3320.8,0.48819]
[1762532713859,3.2078,3321.5,3321.3,0.48812]
[1762532714060,3.2078,3321.5,3321.3,0.00261903]
[1762532714263,3.69908482,3321.5,3321.3,0.00261903]
[1762532714662,11.69908482,3321.5,3321.3,0.00261903]
[1762532714866,3.69908482,3321.5,3321.3,0.00261903]
[1762532716362,11.69908482,3321.5,3321.3,0.00261903]
[1762532716564,3.69908482,3321.5,3321.3,0.00261903]
[1762532717066,0.48831,3320.1,3319.9,3.2078]
[1762532717268,0.48829,3320.2,3319.9,3.69613]
[1762532717458,3.2078,3321.4,3320.9,0.48818]
[1762532717663,3.2078,3321.4,3320.6,3.2078]
[1762532717863,0.48818,3320.9,3320.7,0.00451977]
[1762532718962,3.2078,3321.4,3320.7,0.00451977]
[1762532719373,3.2078,3321.4,3320.9,0.48818]
[1762532719667,3.2078,3321.4,3320.8,0.4882]
[1762532719868,3.2078,3321.4,3320.7,0.00451977]
[1762532720167,3.2078,3321.4,3321.2,0.48813]
[1762532720362,3.2078,3321.4,3320.7,0.00451977]
[1762532720569,3.2078,3321.4,3320.7,0.49272977]
[1762532720868,0.48817,3321.0,3320.8,0.4882]
[1762532721069,0.48818,3320.9,3320.8,0.4882]
[1762532721465,0.4882,3320.8,3320.7,0.00451977]
[1762532721673,3.2078,3321.4,3321.0,0.48817]
[1762532721972,3.2078,3321.4,3320.7,0.00451977]
[1762532722158,0.4882,3320.8,3320.7,0.00451977]
[1762532722559,3.2078,3321.4,3320.8,0.4882]
[1762532722767,3.2078,3321.4,3320.7,0.00451977]
[1762532723064,0.4882,3320.8,3320.7,0.00451977]
[1762532723974,0.4882,3320.8,3320.7,0.49272977]
[1762532724166,0.4882,3320.8,3320.7,0.00451977]
[1762532725369,3.696,3320.8,3320.7,0.00451977]
[1762532725567,0.48836,3319.7,3319.6,3.2078]
[1762532725968,3.2078,3320.1,3318.2,1.0560765]
[1762532725969,0.48842,3319.3,3319.1,3.2078]
[1762532726173,0.48849,3318.8,3318.7,3.2078]
[1762532726372,0.48843,3319.3,3318.7,3.2078]
[1762532726570,0.49564356,3319.3,3319.1,3.69624]
[1762532726771,0.48849,3318.9,3318.7,3.21074536]
[1762532727167,0.00722356,3319.3,3318.7,3.21074536]
[1762532727168,0.48846,3319.1,3318.7,3.21074536]
[1762532727479,0.49565356,3319.3,3318.7,3.21074536]
[1762532727776,0.48845,3319.1,3318.9,0.48846]
[1762532728076,0.00722356,3319.3,3318.7,3.21074536]
[1762532728077,0.00722356,3319.3,3319.1,0.48843]
[1762532728286,3.2078,3320.5,3319.2,16.5507]
[1762532728575,1.61544578,3322.6,3321.7,0.48806]
[1762532728777,3.2078,3323.1,3322.1,3.2078]
[1762532728975,0.48802,3322.0,3321.7,0.48805]
[1762532729279,0.00283023,3322.0,3321.9,3.2078]
[1762532729977,3.2078,3324.0,3322.3,0.48797]
[1762532730179,0.48785,3323.2,3323.0,3.2078]
[1762532730583,3.2078,3323.1,3323.0,3.2078]
[1762532730971,3.21164306,3323.1,3323.0,3.2078]
[1762532732583,0.48792,3322.7,3322.6,3.2078]
[1762532732975,3.69572,3322.7,3322.6,3.2078]
[1762532733882,3.2078,3322.7,3321.7,3.21170354]
[1762532734085,3.69585,3321.8,3321.7,0.00390354]
[1762532734483,6.90365,3321.8,3321.7,0.00390354]
[1762532734885,14.90365,3321.8,3321.7,0.00390354]
[1762532735082,0.4882,3320.8,3320.4,3.2078]
[1762532735481,3.2078,3320.7,3320.5,0.48823]
[1762532735686,0.48803,3321.9,3320.4,3.2078]
[1762532735981,0.4934,3323.0,3321.0,0.5107]
[1762532735982,3.2078,3321.8,3321.0,0.5107]
[1762532736185,0.49263977,3321.3,3321.0,0.0032418]
[1762532736383,0.00451977,3321.3,3321.0,0.0032418]
[1762532736583,0.48814,3321.2,3321.0,0.0032418]
[1762532736782,0.00451977,3321.3,3321.0,0.0032418]
[1762532737185,0.00233287,3321.8,3321.7,0.48806]
[1762532737393,0.48806,3321.7,3321.4,3.6959]
[1762532737585,0.48807,3321.7,3321.0,0.5139418]
[1762532737781,0.00233287,3321.8,3321.0,0.5139418]
[1762532737979,0.49038287,3321.8,3321.1,3.2078]
[1762532738177,0.00685264,3321.8,3321.1,3.2078]
[1762532738388,0.48808,3321.6,3321.1,3.2078]
[1762532738588,0.48814,3321.3,3321.1,3.2078]
[1762532739288,0.48811,3321.4,3321.1,3.69595]
[1762532739486,0.00685264,3321.8,3321.1,3.2078]
[1762532739693,0.48811,3321.4,3321.1,3.2078]
[1762532739990,0.48813,3321.3,3321.1,3.2078]
[1762532740194,0.00685264,3321.8,3321.1,3.2078]
[1762532740395,0.48814,3321.3,3321.1,3.2078]
[1762532741093,0.48813,3321.3,3321.1,3.2078]
[1762532741798,0.48815,3321.1,3321.0,0.0032418]
[1762532742695,0.48811,3321.4,3321.2,0.48813]
[1762532742990,0.48806,3321.7,3321.5,0.48809]
[1762532743299,0.4881,3321.5,3321.4,0.48811]
[1762532743492,0.00685264,3321.8,3321.2,3.2078]
[1762532743688,0.48812,3321.3,3321.2,3.2078]
[1762532743994,0.00685264,3321.8,3321.7,0.48806]
[1762532744189,3.2078,3322.9,3321.9,0.6671]
[1762532744395,0.48802,3322.0,3321.9,1.15514]
[1762532744785,0.48805,3321.8,3321.7,3.2078]
[1762532744986,3.2078,3322.4,3321.7,3.2078]
[1762532745193,0.48808,3321.6,3321.5,0.48809]
[1762532745396,0.48808,3321.6,3321.3,3.2078]
[1762532745397,0.48811,3321.4,3321.3,3.2078]
[1762532746394,0.48812,3321.3,3321.2,0.00451977]
[1762532746889,3.2078,3321.9,3321.2,0.00451977]
[1762532747090,0.48808,3321.6,3321.5,3.2078]
[1762532747392,0.48812,3321.3,3321.2,0.00451977]
[1762532747799,0.00700365,3322.4,3321.7,0.48806]
[1762532748098,0.00700365,3322.4,3321.9,0.6671]
[1762532748292,0.00700365,3322.4,3322.3,0.48798]
[1762532749702,0.00700365,3322.4,3322.2,0.48799]
[1762532749996,0.48804,3321.9,3321.7,3.69586]
[1762532750192,0.00700365,3322.4,3321.7,3.2078]
[1762532750400,0.48804,3321.8,3321.7,3.2078]
[1762532750804,0.00700365,3322.4,3321.9,0.6671]
[1762532750997,3.2078,3323.6,3322.2,3.2078]
[1762532751204,3.2078,3323.6,3322.5,0.48794]
[1762532751404,11.97344578,3324.3,3322.3,3.2078]
[1762532751405,3.2078,3323.2,3322.3,3.2078]
[1762532751604,3.2078,3324.0,3323.1,3.2078]
[1762532751802,0.10505983,3324.8,3323.7,0.3603]
[1762532752101,0.10505983,3324.8,3324.6,0.48763]
[1762532752102,0.10834867,3324.8,3324.6,0.48763]
[1762532752307,0.00451269,3325.0,3324.9,0.48759]
[1762532752497,0.00451269,3325.0,3324.6,0.508]
[1762532752498,0.00451269,3325.0,3324.8,6.0152]
[1762532752802,0.00451269,3325.0,3324.9,3.2078]
[1762532753198,1.61544578,3327.2,3324.9,3.2078]
[1762532753395,1.61544578,3327.2,3325.9,3.2078]
[1762532753396,3.2078,3327.1,3325.9,3.2078]
[1762532753605,3.2078,3326.5,3325.9,3.2078]
[1762532753800,0.48742,3326.1,3325.9,3.2078]
[1762532754103,3.2078,3326.3,3325.5,3.2078]
[1762532754302,0.48748,3325.7,3325.6,0.00451269]
[1762532754800,0.00451269,3326.2,3325.6,0.00451269]
[1762532755103,0.48742,3326.1,3325.9,3.2078]
[1762532755600,0.00451269,3326.2,3325.9,3.2078]
[1762532755798,0.48741,3326.1,3325.9,3.2078]
[1762532757506,0.48747,3325.7,3325.6,0.00451269]
[1762532757704,0.00451269,3326.2,3325.6,0.00451269]
[1762532757902,0.00451269,3326.2,3325.9,3.2078]
[1762532758314,0.48742,3326.1,3325.9,3.2078]
[1762532758609,0.00451269,3326.2,3325.9,3.2078]
[1762532758910,0.00451269,3326.2,3326.0,0.48742]
[1762532759208,0.00451269,3326.2,3325.9,3.2078]
[1762532759706,0.00451269,3326.2,3326.0,0.48742]
[1762532760104,0.00451269,3326.2,3325.9,3.2078]
[1762532760308,0.48742,3326.1,3325.9,3.2078]
[1762532760702,0.00360952,3327.2,3326.0,8.0]
[1762532760908,0.00360952,3327.2,3327.1,3.2078]
[1762532761109,0.00360952,3327.2,3327.1,3.21152279]
[1762532761406,0.48705,3328.6,3327.3,0.6577]
[1762532761607,3.2078,3329.3,3327.3,0.6577]
[1762532761608,0.4871,3328.3,3327.7,3.2078]
[1762532761808,0.00299932,3328.3,3327.7,3.2078]
[1762532762109,0.6016,3328.2,3327.6,0.00451269]
[1762532762309,0.60468685,3328.2,3327.6,0.00451269]
[1762532762507,0.48717,3327.8,3327.6,0.00451269]
[1762532762713,0.48717,3327.8,3327.7,3.2078]
[1762532763007,0.48717,3327.8,3327.6,0.00451269]
[1762532763199,0.00308685,3328.2,3327.7,3.2078]
[1762532763702,0.48715,3328.0,3327.7,3.2078]
[1762532764006,0.00308685,3328.2,3327.7,3.69497]
[1762532764309,0.00308685,3328.2,3327.6,0.00451269]
[1762532764310,0.00308685,3328.2,3328.1,3.2078]
[1762532764715,0.48712,3328.1,3327.7,3.2078]
[1762532765011,3.2078,3328.5,3327.7,3.2078]
[1762532765012,3.2078,3329.5,3327.7,3.2078]
[1762532765205,3.2078,3329.5,3328.6,3.2078]
[1762532765611,0.48693,3329.4,3328.6,3.2078]
[1762532765914,3.2078,3330.2,3329.3,3.2078]
[1762532766106,0.48691,3329.6,3329.4,0.00450579]
[1762532766408,0.48689,3329.7,3329.5,3.2078]
[1762532766708,0.48688,3329.7,3329.5,0.00314751]
[1762532767111,0.48702,3328.8,3328.7,3.2078]
[1762532767307,3.2078,3329.4,3328.7,3.2078]
[1762532767606,0.00373616,3330.2,3329.3,3.2078]
[1762532767812,3.2078,3329.8,3328.8,3.2078]
[1762532768115,0.00448274,3329.6,3329.0,0.00450579]
[1762532768313,0.48697,3329.2,3329.0,3.21230579]
[1762532768808,0.00448274,3329.6,3329.0,3.21230579]
[1762532769012,0.00448274,3329.6,3329.4,3.2078]
[1762532769214,0.48697,3329.1,3329.0,0.00450579]
[1762532770412,0.48715,3327.9,3327.8,3.2078]
[1762532771215,0.48713,3328.0,3327.8,3.2078]
[1762532771510,0.48713,3328.0,3327.8,3.21017844]
[1762532771919,3.2078,3328.8,3327.8,3.21017844]
[1762532772616,3.2078,3328.8,3328.2,3.2078]
[1762532772816,0.48708,3328.4,3328.2,3.6949]
[1762532773012,3.2078,3329.3,3328.2,3.2078]
[1762532773212,0.48715,3327.9,3327.8,0.00237844]
[1762532773819,8.48715,3327.9,3327.8,0.00237844]
[1762532774116,0.4873,3326.9,3326.7,3.2078]
[1762532774318,0.6016,3328.2,3326.7,3.2078]
[1762532774521,0.48724,3327.3,3327.1,3.2078]
[1762532775018,0.49057443,3327.3,3327.1,0.0036087]
[1762532777016,0.00333443,3327.3,3327.2,3.2078]
[1762532777219,0.60493443,3327.3,3327.1,0.0036087]
[1762532777417,0.48728,3327.0,3326.9,0.00450579]
[1762532777911,8.48728,3327.0,3326.9,0.00450579]
[1762532778514,8.48728,3327.0,3326.9,4.26e-06]
[1762532779322,8.0,3327.0,3326.9,3.20780426]
[1762532779619,0.48728,3327.0,3326.9,3.20780426]
[1762532780419,0.00333443,3327.3,3326.9,3.20780426]
[1762532780823,0.48727,3327.1,3326.9,3.69509426]
[1762532781023,0.48725,3327.2,3327.0,0.48728]
[1762532781225,0.00333443,3327.3,3327.2,0.48725]
[1762532781525,0.48706,3328.5,3326.9,3.20780426]
[1762532781719,0.6016,3329.1,3328.0,3.2078]
[1762532781918,0.48705,3328.6,3328.4,3.2078]
[1762532782313,0.48705,3328.6,3326.9,4.26e-06]
[1762532782314,8.0,3328.5,3326.9,4.26e-06]
[1762532782624,0.48727,3327.1,3326.9,4.26e-06]
[1762532782824,3.2078,3327.6,3326.9,4.26e-06]
[1762532783028,0.48727,3327.1,3326.9,4.26e-06]
[1762532784219,0.00450579,3328.0,3326.9,4.26e-06]
[1762532784426,0.48721,3327.5,3327.3,0.6577]
[1762532784725,0.48722,3327.4,3327.3,0.6577]
[1762532785430,0.48718,3327.7,3327.4,0.48722]
[1762532785621,3.21230579,3328.0,3327.2,3.2078]
[1762532785822,3.21230579,3328.0,3326.9,4.26e-06]
[1762532785823,0.48728,3327.0,3326.9,4.26e-06]
[1762532786831,3.2078,3327.6,3326.9,0.48729426]
[1762532787128,0.48725,3327.2,3327.0,0.48727]
[1762532787317,0.48725,3327.2,3327.1,3.2078]
[1762532787522,10.363,3327.9,3327.1,3.2078]
[1762532787723,0.00450579,3328.0,3327.5,0.4872]
[1762532787933,0.48716,3327.8,3327.6,0.48719]
[1762532788230,0.48719,3327.6,3327.5,3.2078]
[1762532788831,0.00450579,3328.0,3327.5,3.2078]
[1762532789029,1.61544578,3329.1,3327.2,0.6079]
[1762532789030,3.2078,3329.2,3329.1,0.48697]
[1762532789222,2.15889787,3330.1,3329.0,3.69478]
[1762532789223,1.06674073,3329.8,3329.0,3.69478]
[1762532789424,1.06674073,3329.8,3328.8,0.6079]
[1762532789425,1.06674073,3330.5,3328.8,0.6079]
[1762532789622,3.2078,3329.9,3328.8,0.6079]
[1762532789927,0.48693,3329.4,3328.8,0.6079]
[1762532790228,0.00704405,3329.4,3328.8,3.82020579]
[1762532790428,0.00704405,3329.4,3329.2,3.2078]
[1762532790636,0.487,3328.9,3328.8,0.00450579]
[1762532790933,3.6948,3328.9,3328.8,5.79e-06]
[1762532791128,11.6948,3328.9,3328.8,5.79e-06]
[1762532791334,3.6948,3328.9,3328.8,5.79e-06]
[1762532793633,11.6948,3328.9,3328.8,5.79e-06]
[1762532793824,4.27454073,3329.3,3328.8,5.79e-06]
[1762532794024,3.2078,3329.3,3329.1,0.6079]
[1762532794424,3.69475,3329.3,3329.1,0.6079]
[1762532795231,3.2078,3329.3,3329.1,0.6079]
[1762532795730,3.69476,3329.3,3329.1,0.6079]
[1762532796451,0.487,3328.9,3328.8,5.79e-06]
[1762532796741,3.6948,3328.9,3328.8,5.79e-06]
[1762532797551,14.0228,3328.9,3328.8,5.79e-06]
[1762532797752,0.48716,3327.8,3327.7,3.2078]
[1762532798248,0.4872,3327.6,3327.3,0.48723]
[1762532798550,3.2078,3328.2,3327.3,3.2078]
[1762532798737,0.48719,3327.6,3327.4,0.00450579]
[1762532798938,3.2078,3328.0,3327.8,0.48716]
[1762532799144,0.48721,3327.5,3327.4,0.00450579]
[1762532799348,0.48728,3327.0,3326.9,4.26e-06]
[1762532799650,3.69757308,3327.0,3326.9,4.26e-06]
[1762532800049,3.21029308,3327.0,3326.9,4.26e-06]
[1762532801146,0.48748,3325.6,3325.2,0.48753]
[1762532801347,3.2078,3325.6,3324.7,3.98331381]
[1762532801553,3.2078,3325.6,3325.3,0.48752]
[1762532801747,3.2078,3325.6,3324.7,0.77551381]
[1762532802045,3.2078,3325.6,3325.1,0.48755]
[1762532802250,3.2078,3325.6,3325.5,0.61102315]
[1762532802846,3.2078,3325.6,3325.5,1.09852315]
[1762532803057,3.2078,3325.6,3325.5,0.61102315]
[1762532803246,3.2078,3325.9,3325.5,0.61102315]
[1762532803447,3.69524,3325.9,3325.7,0.48746]
[1762532803647,3.2078,3325.9,3325.7,0.48746]
[1762532804048,3.2078,3325.9,3325.7,6.50106]
[1762532804251,3.2078,3326.3,3326.2,0.4874]
[1762532804754,0.4874,3326.2,3325.9,0.48743]
[1762532804948,3.2078,3326.3,3325.5,0.61102315]
[1762532805147,3.2078,3325.9,3325.7,0.48747]
[1762532805750,3.2078,3326.3,3326.2,0.4874]
[1762532806046,0.00249308,3327.0,3326.9,0.48729]
[1762532806744,3.2078,3327.9,3327.7,0.48717]
[1762532806945,3.2078,3327.9,3327.3,0.48723]
[1762532807354,3.2078,3327.9,3326.9,3.2078]
[1762532807546,3.2078,3327.9,3327.8,0.48716]
[1762532807752,3.21024908,3327.9,3327.8,0.48716]
[1762532808554,3.21024908,3327.9,3326.5,1.0560765]
[1762532808555,3.21024908,3327.9,3326.9,3.2078]
[1762532808758,0.48726,3327.2,3326.4,3.2078]
[1762532809057,0.48727,3327.1,3326.4,3.2078]
[1762532809259,3.2078,3327.6,3327.0,0.48728]
[1762532809449,3.2078,3327.6,3327.1,0.48725]
[1762532809650,3.2078,3327.6,3327.0,0.00450579]